{"text_format":"3","workbook":"xlsx","n_sheets":3,"sheets":["Nutzungsbedingungen","RAUFRIGO","Berechnung"],"not_rendered":{"images":9,"defined_names":7},"read":"whole","date_system":"1900"}

{"sheet":"Nutzungsbedingungen","index":0,"n_rows":11,"n_cols":22,"rows_kept":11,"merged":[[3,1,3,9],[4,1,4,9],[5,1,5,9],[6,1,6,9],[7,1,7,9],[8,1,8,9],[9,1,9,9]]}
[{"$nulls":21},{"$f":"HLOOKUP(RAUFRIGO!$AC$1,RAUFRIGO!$AB$2:$AZ$999,43,0)","v":"Nutzungsbedingungen"}]
[]
[]
[null,{"$f":"HLOOKUP(RAUFRIGO!$AC$1,RAUFRIGO!$AB$2:$AZ$999,44,0)","v":"REHAU SOFTWARE INDUSTRIEROHRSYSTEM RAUFRIGO"}]
[null,{"$f":"HLOOKUP(RAUFRIGO!$AC$1,RAUFRIGO!$AB$2:$AZ$999,45,0)","v":"Haftungsausschluss"}]
[null,{"$f":"HLOOKUP(RAUFRIGO!$AC$1,RAUFRIGO!$AB$2:$AZ$999,46,0)","v":"Copyright © 2013"}]
[null,{"$f":"HLOOKUP(RAUFRIGO!$AC$1,RAUFRIGO!$AB$2:$AZ$999,47,0)","v":"Alle Daten innerhalb dieser Webseite/Software sind urheberrechtlich geschützt und dürfen nicht ohne Zustimmung der Rechteinhaber verwendet werden. Die durch das Urheberrecht begründeten Rechte, insbesondere die der Übersetzung, des Nachdruckes, der Entnahme von Abbildungen, der Funksendungen, der Wiedergabe auf fotomechanischem oder ähnlichem Wege und der Speicherung in Datenverarbeitungsanlagen, bleiben vorbehalten."}]
[null,{"$f":"HLOOKUP(RAUFRIGO!$AC$1,RAUFRIGO!$AB$2:$AZ$999,48,0)","v":"Kontakt: info@rehau.com "}]
[null,{"$f":"HLOOKUP(RAUFRIGO!$AC$1,RAUFRIGO!$AB$2:$AZ$999,49,0)","v":"Datenschutz: Alle innerhalb dieser Webseite vom Anwender eingegebenen und verarbeiteten Daten werden vertraulich gem. § 5 BDSG behandelt und nicht an Dritte weitergegeben. Die Daten werden nur zur Bearbeitung der Anfragen benutzt. "}]
[null,{"$f":"HLOOKUP(RAUFRIGO!$AC$1,RAUFRIGO!$AB$2:$AZ$999,50,0)","v":"Die Webseite/Software wird von den Herausgebern kostenlos zur Verfügung gestellt. Die Herausgeber übernehmen keinerlei Gewähr für die Aktualität, Korrektheit, zu Grunde gelegte Berechnungsformeln, Berechnungsergebnisse, Vollständigkeit oder Qualität der bereitgestellten Informationen. Haftungsansprüche gegen die Herausgeber und Autoren, die sich auf Schäden materieller oder ideeler Art beziehen, welche durch die Nutzung der dargebotenen Informationen bzw. durch Nutzung fehlerhafter oder unvollständiger Informationen verursacht wurden, sind grundsätzlich ausgeschlossen, sofern seitens der Herausgeber und Autoren kein nachweislich vorsätzliches oder grob fahrlässiges Verschulden vorliegt. Die Herausgeber behalten es sich ausdrücklich vor, Teile der Seiten oder den gesamten Inhalt ohne gesonderte Ankündigung zu verändern, zu ergänzen oder die Veröffentlichung zeitweise oder endgültig einzustellen. Aus der Veröffentlichung kann nicht entnommen werden, dass die verwendeten Bezeichnungen frei von Rechten Dritter sind. Sofern auf Verweisziele („Links“) direkt oder indirekt verwiesen wird, die außerhalb des Verantwortungsbereichs des Herausgebers/Autoren liegen, haften diese allenfalls dann, wenn sie von den Inhalten Kenntnis hatten, und es ihnen technisch möglich und zumutbar wäre, die Nutzung im Falle rechtswidriger Inhalte zu verhindern. Für darüber hinausgehende Inhalte und insbesondere für Schäden, die aus der Nutzung oder Nichtnutzung solcherart dargebotener Informationen entstehen, haftet allein der Anbieter dieser Seiten, nicht derjenige, der über Links auf die jeweilige Veröffentlichung lediglich verweist. Dieser Haftungsausschluss ist als Teil des Internetangebots dieser Seite / dieses Softwareangebots zu betrachten. Sofern Teile oder einzelne Formulierungen dieses Textes der geltenden Rechtslage nicht, nicht mehr oder nicht vollständig entsprechen sollten, bleiben die übrigen Teile des Dokuments in ihrem Inhalt und ihrer Gültigkeit davon unberührt."}]
[null,null,{"$f":"HLOOKUP(RAUFRIGO!$AC$1,RAUFRIGO!$AB$2:$AZ$999,51,0)","v":"Nutzungsbedingungen akzeptieren"},{"$nulls":12},{"$f":"RAUFRIGO!N4","v":0}]

{"sheet":"RAUFRIGO","index":1,"n_rows":57,"n_cols":44,"rows_kept":57,"merged":[[3,8,3,10],[20,20,20,24],[21,21,21,24],[22,21,22,24],[23,21,23,24],[24,21,24,24],[25,21,25,24],[26,21,26,24],[27,21,27,24],[28,21,28,24]]}
[{"$nulls":22},1,{"$f":"AC2","v":"Deutsch"},1,null,null,"Sprache",{"$f":"VLOOKUP(Y1,W1:X10,2,FALSE)","v":"Deutsch"}]
[null,null,{"$f":"HLOOKUP($AC$1,$AB$2:$CA$999,2,0)","v":"RAUFRIGO ENERGIEVERLUSTBERECHNUNG"},{"$nulls":19},2,{"$f":"AD2","v":"English"},null,null,1,"Original","Deutsch","English","Italiano","Français","Español","Türkçe","Русский","Polski","汉语"]
[{"$nulls":8},{"$f":"HLOOKUP($AC$1,$AB$2:$CA$999,3,0)","v":"Rohrleitungsabschnitt: "},{"$nulls":13},3,{"$f":"AE2","v":"Italiano"},null,null,2,"RAUFRIGO ENERGIEVERLUSTBERECHNUNG","RAUFRIGO ENERGIEVERLUSTBERECHNUNG","RAUFRIGO ENERGY LOSS/GAIN CALCULATOR","RAUFRIGO CALCOLO DELLA DISPERSIONE TERMICA","RAUFRIGO CALCUL DES DEPERDITIONS D'ENERGIE","RAUFRIGO CALCULO DE PERDIDA / GANANCIA DE ENERGÍA","RAUFRIGO ENERJİ KAYBI HESABI","РАСЧЕТ ТЕПЛОПОТЕРЬ СИСТЕМЫ RAUFRIGO","RAUFRIGO OBLICZANIE STRAT CHŁODU","RAUFRIGO能量损失计算"]
[null,null,"RAUFRIGO ","180  /  110 x 6,6",{"$f":"IFERROR(VLOOKUP(RAUFRIGO!D4,Berechnung!O15:T26,6,FALSE),\"\")","v":"SDR 17"},{"$nulls":17},4,{"$f":"AF2","v":"Français"},null,null,3,"Rohrleitungsabschnitt: ","Rohrleitungsabschnitt: ","Pipe section","Tratto di tubazione: ","Tronçon du réseau : ","Sección de tubería","Boru devresi kısmı:","Участок трубопровода","Odcinek instalacji","管段："]
[{"$nulls":22},5,{"$f":"AG2","v":"Español"},null,null,4,"Rohrlänge","Rohrlänge","Pipe length","Lunghezza del tubo","Longueur du tronçon","Longitud de tubería","Boru uzunluğu","Длина труб","Długość rury","管路长度"]
[{"$nulls":22},6,{"$f":"AH2","v":"Türkçe"},null,null,5,"Geschwindigkeit","Geschwindigkeit","Velocity","Velocità del fluido","Vitesse","Velocidad","Hız","Скорость","Prędkość","速度"]
[null,null,{"$f":"IF(AR26=1,AR24,\"\")","v":""},{"$nulls":7},{"$f":"HLOOKUP($AC$1,$AB$2:$CA$999,21,0)","v":"T Medium log"},{"$nulls":11},7,{"$f":"AI2","v":"Русский"},null,null,6,"Außentemperatur (Luft)","Außentemperatur (Luft)","External temperature (air)","Temperatura esterna (aria)","Température extérieure (Air)","Temperatura Exterior (aire)","Dış sıcaklık (Hava)","Наружная температура (воздуха)","Temperatura zewnęrzna (powietrza)","外部温度（空气）"]
[{"$nulls":8},{"$f":"HLOOKUP($AC$1,$AB$2:$CA$999,22,0)","v":"T Medium ein"},null,{"$f":"IFERROR(Berechnung!E67,\"-\")","v":{"v":10.019769489826874,"d":" 10.02 °C"}},null,null,{"$f":"HLOOKUP($AC$1,$AB$2:$CA$999,23,0)","v":"T Medium aus"},{"$nulls":8},8,{"$f":"AJ2","v":"Polski"},null,null,7,"Dichte Medium","Dichte Medium","Fluid density","Densità del fluido","Densité du fluide transporté","Densidad de Fluido","Akışkanın yoğunluğu","Плотность теплоносителя","Gęstość medium","媒介密度"]
[null,null,"D2",{"$f":"HLOOKUP($AC$1,$AB$2:$CA$999,17,0)","v":"Aussendurchmesser Basisrohr"},null,null,"[mm]",null,10,{"$nulls":4},{"$f":"IFERROR(Berechnung!B73,\"-\")","v":{"v":10.039525529513027,"d":"10.04 °C"}},{"$nulls":8},9,{"$f":"AK2","v":"汉语"},null,null,8,"relative Luftfeuchtigkeit","relative Luftfeuchtigkeit","Relative humidity","Umidità relativa dell'aria","Pourcentage d'hulidité","Humedad Relativa","Bağıl nem","относительная влажность воздуха","Wilgotność względna","相对空气湿度"]
[null,null,"s",{"$f":"HLOOKUP($AC$1,$AB$2:$CA$999,18,0)","v":"Wandstärke Basisrohr"},null,null,"[mm]",{"$nulls":15},10,{"$nulls":3},9,"innerer Wärmeübergangskoeffizient","innerer Wärmeübergangskoeffizient","Inner film coefficient","Coefficiente di convezione termica (interno)","Coefficient de transfert thermique intérieur","Coeficiente de película interior","İç ısı transfer katsayısı","коэффициент теплоотдачи внутри","Wewnętrzny wsp. przenikania ciepła","内部传热系数"]
[null,null,"D3",{"$f":"HLOOKUP($AC$1,$AB$2:$CA$999,19,0)","v":"Mantelrohrdurchmesser"},null,null,"[mm]",{"$nulls":19},10,"äußerer Wärmeübergangskoeffizient","äußerer Wärmeübergangskoeffizient","Outer film coefficient","Coefficiente di convezione termica (esterno)","Coefficient de transfert thermique extérieur","Coeficiente de película exterior","Dış ısı transfer katsayısı","коэффициент теплоотдачи снаружи","Zewnętrzny wsp. przenikania ciepła","外部传热系数"]
[{"$nulls":3},{"$f":"HLOOKUP($AC$1,$AB$2:$CA$999,20,0)","v":"Rohrreihe"},{"$nulls":22},11,"Wärmeleitfähigkeit PE100","Wärmeleitfähigkeit PE100","Thermal conductivity PE100","Coefficiente conduttività termica PE100","Conductivité thermique PE100","Conductividad térmica PE100","Isıl iletkenlik PE100","теплопроводность ПЭ 100","Wsp. przewodzenia ciepła PE100","导热率 PE 100"]
[{"$nulls":26},12,"Wärmeleitfähigkeit max PUR-Schaum","Wärmeleitfähigkeit max PUR-Schaum","Thermal conductivity max PUR-Foam","Coefficiente conduttività termica max Schiuma PUR","Conductivité thermique max mousse PUR","Conductividad térmica PE100 max espuma PUR","Isıl iletkenlik Lmax PUR-Köpük","теплопроводность  max ППУ","Wsp. przewodzenia ciepła Lmax pianki PUR","导热率 λmax PUR泡沫"]
[{"$nulls":9},{"$f":"IF(I9<F17,HLOOKUP($AC$1,$AB$2:$CA$999,24,0),HLOOKUP($AC$1,$AB$2:$CA$999,25,0))","v":"Kältedämmung"},{"$nulls":16},13,"Wärmeleitfähigkeit verzinktes Stahlblech","Wärmeleitfähigkeit verzinktes Stahlblech","Thermal conductivity galvanised steel casing","Coefficiente conduttività termica lamiera zincata","Conductivité thermique gaine en acier galvalisé","Conductividad térmica protección de acero galvanizado","Isıl iletkenlik Galvanize sac levha"," теплопроводность оцинкованной стальной оболочки","Wsp. przewodzenia ciepła Ocynkowana blacha stalowa","导热率 镀锌钢板"]
[null,null,"L",{"$f":"HLOOKUP($AC$1,$AB$2:$CA$999,4,0)","v":"Rohrlänge"},null,200,"[m]",{"$nulls":19},14,"spezifische Wärmekapazität gemittelt","spezifische Wärmekapazität gemittelt","Average specific heat capacity","Capacità calorifica specifica","Capacité calorifique moyenne spéciale","Capacidad de calor específico promedio","Ortalama özgül ısıl kapasite","средняя удельная теплоемкость","Właściwa pojemność cieplna","平均比热容"]
[null,null,"w",{"$f":"HLOOKUP($AC$1,$AB$2:$CA$999,5,0)","v":"Geschwindigkeit"},null,1,"[m/s]",null,null,"Q",{"$f":"IF(L16>0,HLOOKUP($AC$1,$AB$2:$CA$999,26,0),HLOOKUP($AC$1,$AB$2:$CA$999,27,0))","v":"Kälteverlust"},{"$f":"IFERROR(Berechnung!B67*Berechnung!B68*(RAUFRIGO!I9-RAUFRIGO!N9)*1000,\"-\")","v":{"v":-1235.9617307537117,"d":"-1235.96"}},"[W]",{"$nulls":11},{"$f":"HLOOKUP($AC$1,$AB$2:$AZ$999,43,0)","v":"Nutzungsbedingungen"},null,15,"(bei Wasser -20°C bis +15°C)","(bei Wasser -20°C bis +15°C)","(for water -20°C to +15°C)","(con acqua da -20°C a +15°C)","(Pour l'eau de -20°C à +15°C)","(para agua -20°C a +15°C)","(-20°C - +15°C sıcaklıkta su için)","(для воды от -20°C до +15°C)","(dla wody -20°C - +15°C)","（对于水-20°C至+15°C）"]
[null,null,"Ta",{"$f":"HLOOKUP($AC$1,$AB$2:$CA$999,6,0)","v":"Außentemperatur (Luft)"},null,30,"[°C]",null,null,"V",{"$f":"HLOOKUP($AC$1,$AB$2:$CA$999,28,0)","v":"Volumenstrom"},{"$f":"IFERROR(Berechnung!E30,\"-\")","v":{"v":26.4937294317359,"d":"26.494"}},"[m3/h]",{"$nulls":13},16,"RAUFRIGO benutzerdefinierte Dimension","RAUFRIGO benutzerdefinierte Dimension","RAUFRIGO Bespoke dimensions","RAUFRIGO Dimensione definita dall'utente","RAUFRIGO Dimension personnalisée","RAUFRIGO Dimension personalizada","RAUFRIGO kullanıcı tanımlı çap","RAUFRIGO размер, определяемый потребителем","Śednice RAUFRIGO zdefiniowane przez użytkownika","RAUFRIGO用户自定义尺寸"]
[null,null,"",{"$f":"HLOOKUP($AC$1,$AB$2:$CA$999,7,0)","v":"Dichte Medium"},null,1000,"[kg/m3]",null,null,"m",{"$f":"HLOOKUP($AC$1,$AB$2:$CA$999,29,0)","v":"Massenstrom"},{"$f":"IFERROR(L17*F18,\"-\")","v":{"v":26493.7294317359,"d":"26494"}},"[kg/h]",{"$nulls":13},17,"Aussendurchmesser Basisrohr","Aussendurchmesser Basisrohr","Outer diameter base pipe","Diametro esterno tubo interno","Dimension du tube extérieur tube coloporteur","Diámetro exterior tubo base","Izolasyon kalınlığı Akışkan taşıyıcı boru","Ннаружный диаметр базовой трубы","Średnica zewnętrza rura bazowa","外径基管",{"$nulls":6},{"$f":"SUM(AR27,AR28,AR29)","v":0}]
[null,null,"r",{"$f":"HLOOKUP($AC$1,$AB$2:$CA$999,8,0)","v":"relative Luftfeuchtigkeit"},null,60,"[%]",null,null,"TTau",{"$f":"HLOOKUP($AC$1,$AB$2:$CA$999,30,0)","v":"Taupunkttemperatur"},{"$f":"IFERROR(Berechnung!L61,\"-\")","v":{"v":21.380911788383347,"d":"21.38"}},"[°C]",{"$nulls":7},{"$f":"U26","v":"Version 1.4_08/19"},{"$nulls":5},18,"Wandstärke Basisrohr","Wandstärke Basisrohr","Wall thickness base pipe","Spessore del tubo tubo interno","Epaisseur tube caloporteur","Espesor de pared tubo base","Et kalınlığı Akışkan taşıyıcı boru","Толщина стенки базовой трубы","Grubość ścianki rura bazowa","壁厚基管"]
[{"$nulls":9},"TMedium",{"$f":"HLOOKUP($AC$1,$AB$2:$CA$999,31,0)","v":"Temperaturdifferenz Medium"},{"$f":"IFERROR(N9-I9,\"-\")","v":{"v":0.03952552951302657,"d":"0.040"}},"[K]",{"$nulls":13},19,"Mantelrohrdurchmesser","Mantelrohrdurchmesser","Outer diameter casing","Diametro tubo mantello","Dimension de la gaine extérieure","Diámetro exterior de cubierta","Dış boru çapı","диаметр оболочки","Średnica rury z płaszczem","套管外径",{"$nulls":6},{"$f":"HLOOKUP($AC$1,$AB$2:$CA$999,54,0)","v":"Benutzerdefiniert"}]
[{"$nulls":20},"Versionsnachverfolgung",{"$nulls":5},20,"Rohrreihe","Rohrreihe","Pipe series","Standard Dimension Ratio","Série du tube","Serie de tubería","Boru sırası","серия труб","Typoszereg","管系列"]
[null,null,"i",{"$f":"HLOOKUP($AC$1,$AB$2:$CA$999,9,0)","v":"innerer Wärmeübergangskoeffizient"},null,{"v":100,"d":"100.0"},"[W/m2K]",{"$nulls":13},"Version 1.0_07/13","Erste Version mit Deutsch, Spanisch, Italienisch, Französisch",{"$nulls":4},21,"T Medium log","T Medium log","T Medium log","T Fluido log","Tfluide transporté log","T Medium log","T Akışkan log","T теплоносителя log","T Medium log","T 介质 log"]
[null,null,"a",{"$f":"HLOOKUP($AC$1,$AB$2:$CA$999,10,0)","v":"äußerer Wärmeübergangskoeffizient"},null,{"v":5,"d":"5.000"},"[W/m2K]",{"$nulls":3},{"$f":"HLOOKUP($AC$1,$AB$2:$CA$999,33,0)","v":"Taupunkttiefe am Basisrohr"},{"$f":"IFERROR(IF(I9>=F17,HLOOKUP($AC$1,$AB$2:$CA$999,42,0),IF(Berechnung!Q38<L24,IF(Berechnung!Q38<0,HLOOKUP($AC$1,$AB$2:$CA$999,41,0),Berechnung!Q38),\"im Medium\")),\"-\")","v":{"v":13.028136979228305,"d":"13.0"}},"[mm]",{"$f":"IF(OR(L23=HLOOKUP($AC$1,$AB$2:$CA$999,41,0),K25=HLOOKUP($AC$1,$AB$2:$CA$999,36,0)),HLOOKUP($AC$1,$AB$2:$CA$999,39,0),\"\")","v":""},{"$nulls":6},"Version 1.1_07/13","Aufnahme Türkisch und Hinweismeldung bei Nutzung nach dem 31.12.2015",{"$nulls":4},22,"T Medium ein","T Medium ein","T Medium in","T Fluido in","Tfluide transporté entrant","T Medium interior","T Akışkan iç","T теплоносителя вх.","T Medium dopływ","T 介质 进入"]
[null,null,"1",{"$f":"HLOOKUP($AC$1,$AB$2:$CA$999,11,0)","v":"Wärmeleitfähigkeit PE100"},null,0.41,"[W/mK]",{"$nulls":3},{"$f":"HLOOKUP($AC$1,$AB$2:$CA$999,38,0)","v":"Isolierstärke PUR"},{"$f":"IFERROR(IF((((Berechnung!H45-Berechnung!H44)*1000/2)<0),\"!!! 0 !!!\",(Berechnung!H45-Berechnung!H44)*1000/2),\"-\")","v":{"v":34.99999999999999,"d":"35.0"}},"[mm]",{"$f":"IF((((Berechnung!H45-Berechnung!H44)*1000/2)<0),HLOOKUP($AC$1,$AB$2:$CA$999,39,0),\"\")","v":""},{"$nulls":6},"Version 1.2_09/14","Aufnahme weiterer Sprachen",{"$nulls":4},23,"T Medium aus","T Medium aus","T Medium out","T Fluido out","Tfluide transporté sortant","T Medium exterior","T Akışkan dış","T теплоносителя вых.","T Medium odpływ","T 介质 流出",{"$nulls":6},{"$f":"HLOOKUP($AC$1,$AB$2:$CA$999,52,0)","v":"Bitte Werte benutzerdefiniertes Rohr eintragen:  "}]
[null,null,"2",{"$f":"HLOOKUP($AC$1,$AB$2:$CA$999,12,0)","v":"Wärmeleitfähigkeit max PUR-Schaum"},null,0.028,"[W/mK]",{"$nulls":3},{"$f":"IF(AND((5)<=L23,L23<=L24),HLOOKUP($AC$1,$AB$2:$CA$999,35,0),IF(AND(L23<(5),L23>=0),HLOOKUP($AC$1,$AB$2:$CA$999,36,0),\"\"))","v":"Taupunkt liegt in der Isolierung"},{"$nulls":9},"Version 1.3_03/17","Aufnahme Chinesisch",{"$nulls":4},24,"Kältedämmung","Kältedämmung","Insulation against energy gain","Isolamento per il freddo","Isolation thermique froide","Aislamiento contra ganancia de energía","Soğuk yalıtımı","теплоизоляция холодопроводов","Izolacja termiczna","防止能量增益的绝热",{"$nulls":6},{"$f":"HLOOKUP($AC$1,$AB$2:$CA$999,53,0)","v":"Bitte benutzerdefinierte Werte löschen:"}]
[null,null,"3",{"$f":"HLOOKUP($AC$1,$AB$2:$CA$999,13,0)","v":"Wärmeleitfähigkeit verzinktes Stahlblech"},null,60,"[W/mK]",{"$nulls":13},"Version 1.4_08/19","Korrektur Zellenbezug K23 und K24",{"$nulls":4},25,"Wärmedämmung","Wärmedämmung","Insulation against energy loss","Isolamento per il caldo","isolation thermique chaude","Aislamiento contra pérdida de energía","Isı yalıtımı","теплоизоляция теплопроводов","Izolacja termiczna","防止能量损失的隔热",{"$nulls":5},"Benutzerdefiniert",{"$f":"IF(D4=AR20,1,\"0\")","v":"0"}]
[null,null,"cp",{"$f":"HLOOKUP($AC$1,$AB$2:$CA$999,14,0)","v":"spezifische Wärmekapazität gemittelt"},null,4.249,"[kJ/kgK]",{"$nulls":3},{"$f":"HLOOKUP($AC$1,$AB$2:$CA$999,37,0)","v":"Taupunkttiefe am ESM-Fitting"},{"$f":"IFERROR(IF(I9>=F17,HLOOKUP($AC$1,$AB$2:$CA$999,42,0),IF(Berechnung!Q39<L24,IF(Berechnung!Q39<0,HLOOKUP($AC$1,$AB$2:$CA$999,41,0),Berechnung!Q39),\"im Medium\")),\"-\")","v":{"v":6.882497187749567,"d":"6.9"}},"[mm]",{"$f":"IF(OR(L27=HLOOKUP($AC$1,$AB$2:$CA$999,41,0),K29=HLOOKUP($AC$1,$AB$2:$CA$999,36,0)),HLOOKUP($AC$1,$AB$2:$CA$999,39,0),\"\")","v":""},{"$nulls":12},26,"Wärmeverlust","Wärmeverlust","Energy gain","Dispersione termica calda","Perte en ligne chaude","Ganancia de energía","Isı kaybı","теплопотери","Strata ciepła","能量增益",{"$nulls":5},"Außendurchmesser",{"$f":"IF(F9>0,1,\"0\")","v":"0"}]
[{"$nulls":3},{"$f":"HLOOKUP($AC$1,$AB$2:$CA$999,15,0)","v":"(bei Wasser -20°C bis +15°C)"},{"$nulls":6},{"$f":"HLOOKUP($AC$1,$AB$2:$CA$999,38,0)","v":"Isolierstärke PUR"},{"$f":"IFERROR(IF((((Berechnung!H57-Berechnung!H56)*1000/2)<0),\"!!! 0 !!!\",(Berechnung!H57-Berechnung!H56)*1000/2),\"-\")","v":{"v":19.99999999999999,"d":"20.0"}},"[mm]",{"$f":"IFERROR(IF((((Berechnung!H57-Berechnung!H56)*1000/2)<0),HLOOKUP($AC$1,$AB$2:$CA$999,39,0),\"\"),\"-\")","v":""},{"$nulls":12},27,"Kälteverlust","Kälteverlust","Energy loss","Dipersione termica fredda","Perte en ligne froide","Pérdida de energía","Soğuk kaybı","холодопотери","Strata chłodu","能量损失",{"$nulls":5},"Wandstärke",{"$f":"IF(F10>0,1,\"0\")","v":"0"}]
[{"$nulls":10},{"$f":"IF(AND((5)<=L27,L27<=L28),HLOOKUP($AC$1,$AB$2:$CA$999,35,0),IF(AND(L27<(5),L27>=0),HLOOKUP($AC$1,$AB$2:$CA$999,36,0),\"\"))","v":"Taupunkt liegt in der Isolierung"},{"$nulls":15},28,"Volumenstrom","Volumenstrom","Flow rate by volume","Portata","Débit","Velocidad de flujo por volúmen","Hacim debisi","объемный расход","Przepływ","体流量",{"$nulls":5},"Mantelrohrdurchmesser",{"$f":"IF(F11>0,1,\"0\")","v":"0"}]
[{"$nulls":26},29,"Massenstrom","Massenstrom","Flow rate by mass","Flusso di massa","Débit massique","Celocidad de flujo por masa","Kütle debisi","массовый расход","Przepływ masowy","质量流量"]
[{"$nulls":26},30,"Taupunkttemperatur","Taupunkttemperatur","Dew point temperature","Temperatura del punto di rugiada","Température point de rosée","Temperatura de punto de rocío","Çiy noktası sıcaklığı","температура точки росы","Temperatura punktu rosy","露点温度"]
[{"$nulls":26},31,"Temperaturdifferenz Medium","Temperaturdifferenz Medium","Fluid temperature drop / rise","Differenza di termperatura del fluido","Différence de température fluide ","Caída / Incremento de temperatura de fluído","Akışkanın sıcaklık farkı","перепад температур тепоносителя","Różnica temperatur medium","媒介温度差"]
[{"$nulls":26},32,"TTau","TTau","TDew","TTau","TTau","T Rocío","T Çiy","Tконд","T Rosy","T露点"]
[{"$nulls":26},33,"Taupunkttiefe am Basisrohr","Taupunkttiefe am Basisrohr","Position dew point base pipe","Profondità punto di rugiada tubo basis","Position Point de rosée tube","Posición del punto de rocío de tubería base","Çiy noktasının iç borudaki derinliği","температура точки росы в сторону базовой трубы","Głębokość p.rosy w rurze bazowej","露点在基管中的深度"]
[{"$nulls":26},34,"Isolierstärke PUR","Isolierstärke PUR","Thickness insulation PUR","Spessore di isolamento PUR","Epaisseur d'solation  PUR","Espesor de Aislamiento PUR","Izolasyon kalınlığı PUR","толщина изоляции ППУ","Grubość izolacji PUR","隔热层厚度PUR"]
[{"$nulls":26},35,"Taupunkt liegt in der Isolierung","Taupunkt liegt in der Isolierung","Dew point inside insulation","Punto di rugiada è nel isolamento","Le point de rosée se situe dans la mousse polyuéthane","Punto de rocío dentro del aislamiento","Çiy noktası izolasyonun içerisinde yer alıyor","точка росы находится в изоляции","P.rosy znajduje się w izolacji","露点在隔热层中"]
[{"$nulls":26},36,"empfohlene min. Taupunkttiefe unterschritten","empfohlene min. Taupunkttiefe unterschritten","Dew point too close to circumference","Profondità min. del punto di rugiada è sottopassata","Le point de rosée mini n'est pas atteind","Punto de rocío muy cercano a la circunferencia","tavsiye edilen min. çiy noktasının altına inildi","температура ниже мин. допустимой точки росы","Zalecana min. głębokość punktu rosy przekroczona","推荐的最小露点深度被超越"]
[{"$nulls":26},37,"Taupunkttiefe am ESM-Fitting","Taupunkttiefe am ESM-Fitting","Position dew point EFS-fitting","Profondità punto di rugiada raccordo elettrosaldabile","Position Point de rosée ES","Posición del punto de rocío EFS-accesorio","Çiy noktasının EKM fittingindeki derinliği","температура точки росы на фитинге ЭСМ","Głębokość p.rosy w mufie ESM","露点深度在电熔焊接头上"]
[{"$nulls":26},38,"Isolierstärke PUR","Isolierstärke PUR","Thickness insulation PUR","Spessore di isolamento PUR","Epaisseur d'isolation PUR","Espesor de Aislamiento PUR","Izolasyon kalınlığı PUR","толщина изоляции ППУ","Grubość izolacji PUR","隔热层厚度PUR"]
[{"$nulls":26},39,"Achtung","Achtung","Attention","Attenzione","Attention","Precaución","Dikkat","Внимание","Uwaga","注意"]
[{"$nulls":26},40,"www.rehau.de/raufrigo","www.rehau.de/raufrigo","www.rehau.com","www.rehau.com","www.rehau.com","www.rehau.com","www.rehau.com.tr","www.rehau.de/raufrigo","www.rehau.com/pl-pl","www.rehau.com"]
[{"$nulls":26},41,"außerhalb","außerhalb","outside","fuori da","au-dehors de","Exterior","Dış","снаружи","poza","在外部"]
[{"$nulls":26},42,"nicht relevant","nicht relevant","not relevant","non rilevante","ne pertinent pas","no relevante","İlgisi yok","не подходит","nie istotny","不重要"]
[{"$nulls":26},43,"Nutzungsbedingungen","Nutzungsbedingungen","Terms & Conditions of use","Condizioni de utilizzo","Conditions d'utilisation","Términos y condiciones de uso","Kullanım koşulları","условия эксплуаации","Warunki użytkowania","使用条件"]
[{"$nulls":26},44,"REHAU SOFTWARE INDUSTRIEROHRSYSTEM RAUFRIGO","REHAU SOFTWARE INDUSTRIEROHRSYSTEM RAUFRIGO","REHAU SOFTWARE, INDUSTRIAL PIPING SYSTEM RAUFRIGO","REHAU SOFTWARE SISTEMA DIE TUBI INDUSTRIALI PREISOLATI RAUFRIGO ","SYSTEME DE TUBES INDUSTRIELS REHAU RAUFRIGO","SOFTWARE REHAU, SISTEMA INDUSTRIAL DE TUBERÍA RAUFRIGO","REHAU RAUFRIGO ENDÜSTRİYEL BORU SİSTEMİ YAZILIMI","ПРОГРАММНОЕ ОБЕСПЕЧЕНИЕ REHAU ТРУБОПРОВОДЫ ДЛЯ ПРОМЫШЛЕННОСТИ RAUFRIGO","REHAU SOFTWARE INSTALACJE PRZEMYSŁOWE RAUFRIGO","瑞好软件，工业管道系统RAUFRIGO"]
[{"$nulls":26},45,"Haftungsausschluss","Haftungsausschluss","Disclaimer ","Disclaimer","Avertissement ","Renuncia","Sorumluluk beyanı","Защита авторских прав","Wykluczenie odpowiedzialności","免除责任"]
[{"$nulls":26},46,"Copyright © 2013","Copyright © 2013","Copyright © 2013","Copyright © 2013","Copyright © 2013","Derechos Reservados 2013","Copyright © 2013","Copyright © 2013","Copyright © 2013","版权©2013"]
[{"$nulls":26},47,"Alle Daten innerhalb dieser Webseite/Software sind urheberrechtlich geschützt und dürfen nicht ohne Zustimmung der Rechteinhaber verwendet werden. Die durch das Urheberrecht begründeten Rechte, insbesondere die der Übersetzung, des Nachdruckes, der Entnahme von Abbildungen, der Funksendungen, der Wiedergabe auf fotomechanischem oder ähnlichem Wege und der Speicherung in Datenverarbeitungsanlagen, bleiben vorbehalten.","Alle Daten innerhalb dieser Webseite/Software sind urheberrechtlich geschützt und dürfen nicht ohne Zustimmung der Rechteinhaber verwendet werden. Die durch das Urheberrecht begründeten Rechte, insbesondere die der Übersetzung, des Nachdruckes, der Entnahme von Abbildungen, der Funksendungen, der Wiedergabe auf fotomechanischem oder ähnlichem Wege und der Speicherung in Datenverarbeitungsanlagen, bleiben vorbehalten.","All data contained within this website/software is copyright protected and may not be used without the permission of the copyright holder. The rights afforded by the copyright, particularly those concerning translation, reprinting, extracting images, broadcasting, duplicating by photomechanical or similar means and storing in data processing systems, are reserved. ","Contact: info@rehau.com  ","Toutes les données dans ce site web / logiciels sont protégées par copyright et ne peuvent être utilisées sans l'autorisation du détenteur du copyright. Les droits d'auteur protègent la traduction, la réimpression, la réutilisation d'illustrations, de la radiodiffusion, la reproduction par des moyens photographiques ou similaires ainsi que le stockage dans des systèmes de traitement des données.","Todos los datos que aparecen en este sitio web / software están protegidos por Derechos Reservados y no pueden ser utilizados sin el consentimiento del titular del derecho de autor. Los derechos reconocidos por el derecho de autor, en particular las relacionadas a traducción, re impresión, extracción de imágenes, radiodifusión, duplicación en medios foto mecánicos o similar y el almacenamiento en sistemas de procesamiento de datos, son reservados.","Bu web sayfasının/yazılımın içerisindeki tüm verilerin kullanım hakkı saklıdır ve hak sahibinin onayı olmaksızın kullanılamaz. Telif hakkıyla ilişkilendirilen haklar, özellikle başka dillere çevrilmesi, yeniden basılması, radyo yayınlarının alınması, fotomekanik veya benzer yollarla aktarılması ve veri düzenleme sistemlerine kaydedilmesi gibi haklar korunmuştur. ","Все данные на этой интернет-странице / в программе находятся под защитой авторских  прав и не могут быть использованы без согласования с правообладателем. Защитой авторского права запрещается перевод, перепечатка, использование рисунков и иллюстраций, использование материалов в радио- и телепередачах, передача по фотомеханическим или аналогичным средствам и сохранение данных на электронных носителях.","Wszelkie dane zawarte na niniejszej stronie internetowej/w niniejszym oprogramowaniu są chronione prawem autorskim i nie mogą być wykorzystywane bez zgody właściciela praw autorskich. Prawa pochodne wobec praw autorskich, w szczególności prawo do przekładu, do przedruku, pobierania obrazów, przekazu drogą radiową, powielania sposobem fotomechanicznym lub innym i zapisywania danych w urządzeniach do przetwarzania danych, są zastrzeżone.","本网站/软件中包含的所有数据均受版权保护，未经版权所有者许可，不得使用。保留版权所赋予的权利，特别是关于翻译、重印、提取图像、广播、通过照相机械或类似装置复制和存储在数据处理系统中的权利。"]
[{"$nulls":26},48,"Kontakt: info@rehau.com ","Kontakt: info@rehau.com ","Contact: info@rehau.com  ","1. Il software IRS è stato ideato e realizzato su foglio di calcolo elettronico a tabella da Rehau con mera funzione di solo supporto di calcolo dei dati relativi alla progettazione di impianti termoidraulici, quali il diametro e lo spessore dei relativi componenti (tubi, etc.). ","Contact: info@rehau.com ","Contacto: info@rehau.com","İletişim: info@rehau.com","Контакт: info@rehau.com ","Kontakt: info@rehau.com ","联系：info@rehau.com"]
[{"$nulls":26},49,"Datenschutz: Alle innerhalb dieser Webseite vom Anwender eingegebenen und verarbeiteten Daten werden vertraulich gem. § 5 BDSG behandelt und nicht an Dritte weitergegeben. Die Daten werden nur zur Bearbeitung der Anfragen benutzt. ","Datenschutz: Alle innerhalb dieser Webseite vom Anwender eingegebenen und verarbeiteten Daten werden vertraulich gem. § 5 BDSG behandelt und nicht an Dritte weitergegeben. Die Daten werden nur zur Bearbeitung der Anfragen benutzt. ","Data protection: All data entered and processed by the user on this website will be handled with confidentiality in line with § 5 BDSG (German Data Protection Act) and not passed on to any third parties. The data will be used exclusively for dealing with the enquiries. ","2.Tutte le informazioni riportate nel software sono protette da copyright e non possono essere utilizzate senza il consenso del relativo titolare che è la medesima Rehau Spa, così come che tutti i diritti derivanti dal copyright, e in particolar modo la traduzione, la ristampa, lo stralcio di immagini, la trasmissione via etere, la riproduzione tramite dispositivi fotomeccanici o similari e l’archiviazione informatica, sono riservati. ","Protection des données: Toutes les données entrées dans ce site par l'utilisateur sont traitées comme des données confidentielles et non sont en aucun cas transmises à des tiers. Les données seront utilisées uniquement pour traiter les demandes. ","Protección de datos: Todos los datos introducidos y procesados por el usuario de este sitio web serán tratados de forma confidencial de acuerdo con el § 5 BDSG (Ley Alemana de protección de datos) y no serán transmitidos a terceros. Los datos serán utilizados exclusivamente para resolver las preguntas.","Veri emniyeti: Bu Web Sayfası içerisinde kullanıcı tarafından girilen ve işlenen veriler § 5 BDSG uyarınca gizli olarak tutular ve üçüncü şahıslara aktarılmaz. Veriler sadece taleplerin işlenebilmesi için kullanılır. ","Защита данных: Все данныые пользователя, обрабатываемые и вводимые на данную интернет-страницу сохраняют, согласно § 5 BDSG свою конфиденциальность и не подлежат передаче третьим лицам. Данные пользователя используются исключительно с целью обработки заказа.","Ochrona danych: Wszystkie dane, które Użytkownik poda na niniejszej stronie internetowej i zostaną przetworzone, są zgodnie z art. 39 ust. 2 ustawy o ochronie danych osobowych (Dz. U. z 2002 r. Nr 101, poz. 926 z późn. zm.) traktowane poufnie i nie są przekazywane osobom trzecim. Dane te wykorzystywane są wyłącznie do opracowania zapytań.","数据保护：用户在本网站上输入和处理的所有数据将根据§ 5 BDSG（德国数据保护法）进行保密处理，不会传递给任何第三方。数据将专门用于处理询价。"]
[{"$nulls":26},50,"Die Webseite/Software wird von den Herausgebern kostenlos zur Verfügung gestellt. Die Herausgeber übernehmen keinerlei Gewähr für die Aktualität, Korrektheit, zu Grunde gelegte Berechnungsformeln, Berechnungsergebnisse, Vollständigkeit oder Qualität der bereitgestellten Informationen. Haftungsansprüche gegen die Herausgeber und Autoren, die sich auf Schäden materieller oder ideeler Art beziehen, welche durch die Nutzung der dargebotenen Informationen bzw. durch Nutzung fehlerhafter oder unvollständiger Informationen verursacht wurden, sind grundsätzlich ausgeschlossen, sofern seitens der Herausgeber und Autoren kein nachweislich vorsätzliches oder grob fahrlässiges Verschulden vorliegt. Die Herausgeber behalten es sich ausdrücklich vor, Teile der Seiten oder den gesamten Inhalt ohne gesonderte Ankündigung zu verändern, zu ergänzen oder die Veröffentlichung zeitweise oder endgültig einzustellen. Aus der Veröffentlichung kann nicht entnommen werden, dass die verwendeten Bezeichnungen frei von Rechten Dritter sind. Sofern auf Verweisziele („Links“) direkt oder indirekt verwiesen wird, die außerhalb des Verantwortungsbereichs des Herausgebers/Autoren liegen, haften diese allenfalls dann, wenn sie von den Inhalten Kenntnis hatten, und es ihnen technisch möglich und zumutbar wäre, die Nutzung im Falle rechtswidriger Inhalte zu verhindern. Für darüber hinausgehende Inhalte und insbesondere für Schäden, die aus der Nutzung oder Nichtnutzung solcherart dargebotener Informationen entstehen, haftet allein der Anbieter dieser Seiten, nicht derjenige, der über Links auf die jeweilige Veröffentlichung lediglich verweist. Dieser Haftungsausschluss ist als Teil des Internetangebots dieser Seite / dieses Softwareangebots zu betrachten. Sofern Teile oder einzelne Formulierungen dieses Textes der geltenden Rechtslage nicht, nicht mehr oder nicht vollständig entsprechen sollten, bleiben die übrigen Teile des Dokuments in ihrem Inhalt und ihrer Gültigkeit davon unberührt.","Die Webseite/Software wird von den Herausgebern kostenlos zur Verfügung gestellt. Die Herausgeber übernehmen keinerlei Gewähr für die Aktualität, Korrektheit, zu Grunde gelegte Berechnungsformeln, Berechnungsergebnisse, Vollständigkeit oder Qualität der bereitgestellten Informationen. Haftungsansprüche gegen die Herausgeber und Autoren, die sich auf Schäden materieller oder ideeler Art beziehen, welche durch die Nutzung der dargebotenen Informationen bzw. durch Nutzung fehlerhafter oder unvollständiger Informationen verursacht wurden, sind grundsätzlich ausgeschlossen, sofern seitens der Herausgeber und Autoren kein nachweislich vorsätzliches oder grob fahrlässiges Verschulden vorliegt. Die Herausgeber behalten es sich ausdrücklich vor, Teile der Seiten oder den gesamten Inhalt ohne gesonderte Ankündigung zu verändern, zu ergänzen oder die Veröffentlichung zeitweise oder endgültig einzustellen. Aus der Veröffentlichung kann nicht entnommen werden, dass die verwendeten Bezeichnungen frei von Rechten Dritter sind. Sofern auf Verweisziele („Links“) direkt oder indirekt verwiesen wird, die außerhalb des Verantwortungsbereichs des Herausgebers/Autoren liegen, haften diese allenfalls dann, wenn sie von den Inhalten Kenntnis hatten, und es ihnen technisch möglich und zumutbar wäre, die Nutzung im Falle rechtswidriger Inhalte zu verhindern. Für darüber hinausgehende Inhalte und insbesondere für Schäden, die aus der Nutzung oder Nichtnutzung solcherart dargebotener Informationen entstehen, haftet allein der Anbieter dieser Seiten, nicht derjenige, der über Links auf die jeweilige Veröffentlichung lediglich verweist. Dieser Haftungsausschluss ist als Teil des Internetangebots dieser Seite / dieses Softwareangebots zu betrachten. Sofern Teile oder einzelne Formulierungen dieses Textes der geltenden Rechtslage nicht, nicht mehr oder nicht vollständig entsprechen sollten, bleiben die übrigen Teile des Dokuments in ihrem Inhalt und ihrer Gültigkeit davon unberührt.","This website/software is provided by the publishers free of charge. The publishers assume no liability concerning the topicality, correctness, underlying calculation formulae, calculation results, completeness or quality of the information provided. Any liability claims against the publishers and authors, which refer to material or non-material damage, and which may be caused by the usage of the information provided or, respectively, by the usage of any incorrect or incomplete information, are generally excluded except in cases where there is evidence of wilful or gross negligence on the part of the publishers and authors.  The publishers expressly reserve the right to amend, complement or delete parts of these Web pages or the entire content, or to temporarily suspend or cease in full its publication without any special announcement. Publication does not imply that the designations used are free of the rights of any third parties. Where direct or indirect reference is made to links to pages over which the publishers/authors have no control, these shall only be liable should they have had previous knowledge of the contents, and should it have been technically feasible and reasonable for them to have prevented their usage in the event of the contents being illegal. For any other contents and, in particular, for damages resulting from the use or non-use of information provided in this way, the publisher of this site is the only party liable and not those who just refer to the respective publication via links. This exemption of liability is to be considered a part of the Web site containing the link or reference to this page/software. Should any parts or individual formulations of this text not, no longer or not fully comply with applicable legal stipulations, the remaining parts of this document shall remain unaffected in their content and their validity. ","3. Il software IRS è messo a disposizione gratuitamente da Rehau e dai suoi curatori, i quali non forniscono alcuna garanzia in merito all'aggiornamento, alla correttezza, alle formule matematiche, alla completezza o alla qualità delle informazioni in esso contenute. 4. È esclusa ogni responsabilità di Rehau e dei curatori/autori del programma per danni materiali o immateriali derivanti dall'utilizzo delle informazioni fornite tramite il software ovvero da informazioni mancanti o incomplete. In particolare i soggetti medesimi sono esonerati da qualsivoglia responsabilità relativa ad errori di progettazione e/o misurazione, per i quali rimane unico responsabile il soggetto utilizzatore.  5. Rehau ed i curatori/autori del software si riservano espressamente il diritto di modificare senza preavviso parti o l'intero contenuto del programma, di integrarlo con aggiunte o di cessarne la pubblicazione in via temporanea o definitiva, senza alcun obbligo di comunicazione alcuna, rimanendo onere dell’utilizzatore di informarsi circa le eventuali modifiche di cui sopra. 6. Laddove parti di questo testo ovvero singole affermazioni in esso contenute siano in contrasto con le normative vigenti, anche in forma parziale o solo temporaneamente, sono fatte salve l'applicabilità dei contenuti e la validità delle parti restanti del documento. 7. Qualunque controversia in ordine alla interpretazione ed alla esecuzione dei rapporti connessi al servizio reso sarà devoluta al Tribunale di Milano quale foro competente in via esclusiva ed assoggettata alla legge italiana.","Le site / logiciel est fournis gratuitement par les éditeurs. L'éditeur décline toute responsabilité quant à l'actualité, l'exactitude, l'exhaustivité ou la qualité des informations fournies. L’éditeur décline également toute responsabilité quant aux formules mathématiques utilisées et aux résultats des calculs. L’éditeur et les auteurs déclinent toute responsabilité quant aux dommages de toute nature qui pourraient être causés par l'utilisation d'informations erronées ou incomplètes contenues dans le site/ logiciel et ceci sauf en cas de dol ou de faute lourde. Les éditeurs se réservent le droit de modifier sans préavis tout ou parties du contenu du site ainsi que de modifier temporairement ou de cesser définitivement sa publication. Les noms et désignations sont protégés par le droit d’auteur dès la publication du Site/ logiciel. Les références («liens») fournies directement ou indirectement sont hors du champ de responsabilité de l'éditeur / auteurs. Ces derniers sont tout au plus responsables du contenu dont ils avaient connaissance dans la mesure où il est techniquement possible et raisonnable pour eux d’empêcher l'utilisation de contenus illégaux. Le contenu de ces pages accessibles par les liens depuis le Site/ logiciel, et en particulier les dommages pouvant résulter de l'utilisation ou la non-utilisation de ces informations relèvent uniquement et entièrement de la responsabilité du fournisseur de ces pages et informations tierces. Cet avertissement doit être considéré comme faisant partie intégrante du Site/ logiciel et des offres en résultant.  cette déclaration ne sont pas ou ne sont plus légales, correctes ou pleinement conformes, le contenu des parties restantes du document demeurent cependant valides. ","Este sito web / software es proporcionada por los editores de forma gratuita. Los editores no asumen ninguna resposabilidad con respecto a la actualidad, exactitud, fórmulas de cálculo no visibles, resultados de cálculo, integridad o calidad de la información proporcionada. Cualquier reclamación en contra de los editores y autores que se relacione a daños materiales o no materiales, y que deriven en el uso de la información proporcionada o, en su defecto, por el uso de información incorrecta o incompleta, son generalmente excluidas, excepto en los casos en los que exista evidencia de negligencia voluntaria y/o grave por parte de los editores y autores. Los editores se reservan el derecho de modificar, complementar o eliminar partes de estas páginas web o de todo el contenido, o para suspender o cesar por completo su publicación sin anuncio especial temporal. La publicación no implica que las denominaciones utilizadas estén libres de los derechos de terceros. Cuando se haga referencia directa o indirecta a los enlaces a las páginas sobre las que los editores / autores no tienen ningún control, serán responsables sólo en caso de que hayan tenido conocimiento previo de los contenidos, y en caso de que haya sido técnicamente posible y razonable el impedimento de su uso en el caso que los contenidos sean ilegales. Para cualquier otro contenido y, en especial por los daños ocasionados por el uso o no uso de la información proporcionada en esta forma, el editor de este sitio es el único responsable y no aquellos a los que sólo hacen referencia las publicaciones a través de enlaces. Esta excención de responsabilidad debe considerarse como parte de la página Web que contiene el enlace o referencia de la página / software. En caso de que cualquier parte o formulaciones individuales de este texto no cumplan a cabalidad con las estipulaciones legales aplicables, las partes restantes del documento no se verán afectadas en su contenido y validez.","Web sitesi/yazılım yayıncı tarafından ücretsiz olarak sağlanmıştır. Yayıncı esas alınan hesaplama formüllerinin güncelliği ve doğruluğu, hesaplama sonuçları, sağlanan bilgilerin tamlığı ve kalitesi hakkında hiçbir sorumluluk kabul etmez. Sağlanan hatalı veya eksik bilgilerin kullanılması nedeniyle oluşan maddi ve manevi hasarlar ile ilgili olarak yazarlar ve yayıncılara karşı sorumluluk talepleri, yayıncıların ve yazarların kasıtları veya ağır ihmalleri söz konusu olmadığı sürece kabul edilmez. Yayıncılar herhangi bir zamanda, sayfaların bölümlerini veya içeriğin tamamını önceden herhangi bir bildirimde bulunmaksızın, değiştirebilir, tamamlayabilir veya yayınlamayı geçici veya kalıcı olarak durdurabilir. Yayınlanan içerikte kullanılan tanımlarda üçüncü kişilerin hakları mevcut olabilmektedir. Yayıncıların/yazarların sorumluluk alanı dışında bulanan yönlendirme hedeflerine (\"Links\") doğrudan veya dolaylı olarak atıfta bulunulması durumunda yayıncılara/yazarlara bu sayfaların içeriği hakkında ancak bilgi sahibi olmaları durumunda ve bu yasal olmayan içeriklerin kullanımını teknik açıdan engelleyecebilecek durumda olmaları halinde sorumluluk yüklenebilir.  Bunların haricindeki içerikler ve de bu tür sunulan bilgilerin kullanılması ya da kullanılmaması nedeniyle ortaya çıkacak olan zararlardan yalnızca yönlendirilmiş olan web sitesinin sunucuları sorumludur, ilgili yayına kendi sayfasındaki Linkler aracılığıyla sadece işaret eden web sitesi sunucusu sorumlu değildir. İşbu feragatname bu sayfanın / bu yazılımın internet sunumunun bir parçasıdır. İşbu metnin bölümlerinin veya münferit ifadelerinin geçerli mevzuata tam olarak uygun olmaması durumunda belgenin geri kalan içeriği ve geçerliliği bundan etkilenmez.","Интернет-страница / программное обеспечение предоставляется издателями бесплатно. При этом издатели не несут ответственности за актуальность, корректность положенных в основу расчетных формул, результатов расчета, полноту или качество предоставляемой информации. Издатели или авторы не несут ответственности за материальный или моральный ущерб, произошедший при использовании предоставляемой информации или при использовании ошибочной или неполной информации до тех пор, пока убедительно не доказана их вина или халатность. Издатели не имеют права без особого согласования вносить изменения или дополнения в страницы, части страниц, а также приостанавливать или прекращать издание. Из изданий нельзя установить, затрагиваются ли обозначениях права третьих лиц. Если ссылка прямо или косвенно отсылает в области, находящиеся вне зоны ответственности издателя или автора, то последние несут ответственность только в том случае, если им было известно содержание и у них была техническая возможность предотвратить использование в случае нарушения прав. За выходящую за данные рамки информацию, а особенно за ущерб, возникший из-за использования или неиспользования предлагаемой информации ответственность несет только автор данных страниц, но ни в коем случае тот, кто сделал ссылку на данную информацию. Данную информацию по защите авторских прав следует рассматривать как часть интернет-продукта данной страницы или программного обеспечения. Если отдельные части данного текста или формулировки уже не соответствуют или не полностью соответствуют действующим правовым нормам, то остальные части сохраняют свою актуальность.","Wydawcy udostępniają niniejszą stronę internetową/oprogramowanie nieodpłatnie. Wydawcy nie ponoszą odpowiedzialności za aktualność, poprawność, formuły obliczeniowe, wyniki obliczeń, kompletność i jakość udostępnianych informacji.\nWydawcy i Autorzy nie ponoszą odpowiedzialności za ewentualne materialne i niematerialne szkody spowodowane wykorzystaniem przedstawionych informacji względnie wskutek wykorzystania błędnej lub niekompletnej informacji, o ile nie będzie to spowodowane udokumentowanym umyślnym działaniem lub rażącym niedbalstwem Wydawców i Autorów.\nWydawcy zastrzegają sobie wyraźnie możliwość zmiany, uzupełnienia części stron lub całej treści bez oddzielnej zapowiedzi lub możliwość czasowego lub ostatecznego wstrzymania publikacji. Ponadto zwracają uwagę, że użyte w publikacji terminy mogą być obciążone prawami osób trzecich.Jeżeli publikacja odsyła w sposób pośredni lub bezpośredni („linki”) do stron leżących poza obszarem odpowiedzialności Wydawców/Autorów, odpowiadają oni tylko wtedy, gdy wiedzieli o ich treści i w przypadku treści niezgodnych z prawem byli w stanie technicznie zapobiec ich użytkowaniu. Za treści wykraczające ponad to, a w szczególności za szkody powstałe przez wykorzystanie bądź niewykorzystanie tego typu przedstawionych informacji, odpowiada wyłącznie osoba oferująca te strony, a nie ten, który poprzez linki jedynie odsyła do danej publikacji. To wykluczenie odpowiedzialności jest częścią oferty internetowej niniejszej strony. Jeżeli części lub pojedyncze sformułowania niniejszego tekstu nie są lub już nie są zgodne z obowiązującym stanem prawnym, bądź mu nie w pełni odpowiadają, nie narusza to pozostałych postanowień, które zachowują swoją ważność.","本网站/软件由发行商免费提供。发行商不对所提供信息的主题、正确性、基本计算公式、计算结果、完整性或质量承担任何责任。任何针对发布商和作者的责任索赔，涉及重大或非重大损害，并且可能由使用提供的信息或使用任何不正确或不完整的信息造成的，通常排除，除非发布商和作者有故意或重大疏忽的证据的情况。出版商明确保留修改、补充或删除这些网页部分或整个内容的权利，或暂时停止或停止其出版，而无需任何特别的公告。出版不意味着所使用的名称没有任何第三方的权利。在直接或间接引用出版商/作者无法控制的页面的链接时，这些内容只有在对内容具有先前知识的情况下才应承担责任，如果它们在技术上可行且合理，其在内容是非法的情况下的使用。对于任何其他内容，特别是对因使用或不使用以这种方式提供的信息所造成的损失，本网站的发布者是唯一的一方责任，而不是那些谁通过链接参考相应的出版物。此免责声明将被视为网站的一部分，其中包含本网页/软件的链接或引用。如果本文件的任何部分或个别表述不再或不完全符合适用的法律规定，则本文档的其余部分在其内容和有效性方面不受影响。"]
[{"$nulls":26},51,"Nutzungsbedingungen akzeptieren","Nutzungsbedingungen akzeptieren","Accept terms and conditions","Prendere atto ed accettare tutte e singole condizioni di utilizzo","Accepté conditions d'utilisation","Acepto términos y condiciones.","Kullanım koşullarını kabul et","С условиями применения согласен","Akceptacja warunków użytkowania","接受使用条件"]
[{"$nulls":26},52,"Bitte Werte benutzerdefiniertes Rohr eintragen:  ","Bitte Werte benutzerdefiniertes Rohr eintragen:  ","Please insert values of user-definied pipe:","Inserire i valori per tubazione richiesta:","Entrer les valeurs du tube personnalisé choisi:","Favor de ingresar valores de tubería definidos por el usuario:","Lütfen kullanıcı tanımlı borunun değerlerini giriniz:","пожалуйста введите характеристики своей трубы","Proszę podać wartości zdefiniowane przez użytkownika:","请将用户自定义的管路值填入："]
[{"$nulls":26},53,"Bitte benutzerdefinierte Werte löschen:","Bitte benutzerdefinierte Werte löschen:","Please delete value of user-definied pipe:","Eliminare i valori inseriti:","Supprimer les valeurs personnalisées:","Favor de borrar valores de tubería definidos por el usuario:","Lütfen kullanıcı tanımlı değerleri silin:","пожалуйста удалите характеристики своей трубы","Proszę usunąć wartości zdefiniowane przez użytkownika:","请将用户自定义值删除："]
[{"$nulls":26},54,"Benutzerdefiniert","Benutzerdefiniert","User-defined","Personalizzabile dall'utente","Choix personnalisé","Definido por el usuario","Kullanıcı tanımlı","Значения пользователя","Zdefiniowane przez użytkownika","用户自定义的"]
[{"$nulls":25},{"$f":"HLOOKUP($AC$1,$AB$2:$AZ$999,55,0)","v":"           Bitte beachten Sie die mit Nutzung dieses Tools akzeptierten Nutzungsbedingungen."},55,"           Bitte beachten Sie die mit Nutzung dieses Tools akzeptierten Nutzungsbedingungen.","           Bitte beachten Sie die mit Nutzung dieses Tools akzeptierten Nutzungsbedingungen.","           Please note our terms and conditions you accept by using this software tool. ","           Durante l’uso del Tool si prega di rispettare tutte le singole condizioni d‘utilizzo già accettate.","           Merci d'observer les conditions d'utilisation, que vous avez acceptées avant l'utilisation de cet outil de calcul.","           Favor de tomar en cuenta nuestros términos y condiciones que Usted acepta al utilizar esta herramienta de software.","           Lütfen bu dokümanın kullanımı ile kabul ettiğiniz kullanım koşullarını dikkate alınız.","           Пожалуйста соблюдайте подтвержденные ранее условия использования данного инструмента","           Proszę zwrócić uwagę, iż przez użycie niniejszego narzędzia akceptują Państwo warunki użytkowania","请注意我们使用此软件工具接受的条款和条件"]
[{"$nulls":25},{"$f":"HLOOKUP($AC$1,$AB$2:$AZ$999,56,0)","v":"Bitte kontaktieren Sie uns unter www.rehau.com, um die neuste Version des REHAU Berechnungstools zu erhalten. "},56,"Bitte kontaktieren Sie uns unter www.rehau.com, um die neuste Version des REHAU Berechnungstools zu erhalten. ","Bitte kontaktieren Sie uns unter www.rehau.com, um die neuste Version des REHAU Berechnungstools zu erhalten. ","Please contact REHAU at www.rehau.com to receive the latest version of the REHAU calculation software.","Si prega di contattare REHAU per ricevere l'ultima versione del software di calcolo REHAU. Per le nostre informazioni di contatto vedere www.rehau.com. ","Veuillez nous contacter pour obtenir la dernière version du programme de dimensionnement REHAU. Vous trouverez nos coordonnées sur notre site internet www.rehau.com.","Por favor, póngase en contacto con nosotros para que le podamos enviar la última versión de la herramienta de cálculo REHAU. La información de contacto la puede encontrar en www.rehau.com.","REHAU hesaplama dokümanının güncel versiyonunu size iletebilmemiz için lütfen bizimle temasa geçiniz. İletişim bilgilerimizi www.rehau.com.tr adresinde bulabilirsiniz. ","Пожалуйста, свяжитесь с нами на www.rehau.com, чтобы получить новую версию расчетных программ REHAU.","Prosimy o kontakt poprzez www.rehau.pl celem uzyskania najnowszej wersji narzędzi obliczeniowych REHAU.","请您在www.rehau.com下联系我们，从而得到最新版本的瑞好计算软件。"]

{"sheet":"Berechnung","index":2,"n_rows":82,"n_cols":26,"rows_kept":82,"hidden":true}
[]
[{"$nulls":7},"aa","äußerer Wärmeübergangskoeffizient",{"$nulls":5},"Ausführung\n\n","Mediumrohr\nAußend.\n[mm]","s\n\n[mm]","SDR\n\n","D ESM-\nMuffe\n[mm]","D/2 ESM-Muffe\n[mm]","Muffenm.\nZapfen\n[mm]","Zapfen-\nhöhe\n[mm]","Isolierung\nmin.\n[mm]","Außend.\nGesamt\n[mm]","gewählter\nWickelfalzd.\n[mm]","s\n\n[mm]"]
[{"$nulls":7},"d3","Außendurchmesser PUR-Schaum",{"$f":"C20","v":0.18},"[m]"]
[{"$nulls":7},"tO","Oberflächentemperatur",{"$f":"B37","v":{"v":27.826666075540288,"d":"27.8"}},"[°C]",{"$nulls":3},"standard",63,5.8,11,82,{"$f":"S4/2","v":{"v":41,"d":"41.0"}},58,{"$f":"U4-T4","v":{"v":17,"d":"17.0"}},20,{"$f":"(T4+W4)*2","v":122},140,0.6]
[{"$nulls":7},"tL","Lufttemperatur",{"$f":"C14","v":30},"[°C]",{"$nulls":3},"standard",75,6.8,11,98,{"v":49,"d":"49.0"},65,{"v":16,"d":"16.0"},20,138,150,0.6]
[{"$nulls":14},"standard",90,5.4,17,117,58.5,69,10.5,20,157,160,0.6]
[{"$nulls":14},"standard",110,6.6,17,140,{"v":70,"d":"70.0"},79,{"v":9,"d":"9.0"},20,180,180,0.6]
[{"$nulls":14},"standard",125,7.4,17,157,78.5,87,8.5,20,197,200,0.6]
["Q","Wärmestrom",{"$f":"((PI()*(C13-C14))/((1/(C11*C18))+((1/(2*C15))*LN(C19/C18))+((1/(2*C16))*LN(C20/C19))+((1/(2*C17))*LN(C21/C20))+(1/(C12*C21))))*C10","v":{"v":-1237.1846562274743,"d":"-1237.1847"}},"[W]","ohne T log Mittel !!!",null,null,"d t","Lufttemperatur",{"$f":"ABS(J4-J5)","v":2.173333924459712},"[°C]",{"$nulls":3},"standard",160,9.5,17,200,{"v":100,"d":"100.0"},113,{"v":13,"d":"13.0"},20,240,250,0.6]
["l","Länge",{"$f":"RAUFRIGO!F15","v":200},"[m]",{"$nulls":3},"Waagerechtes Rohr in Innenräumen und im Freien bei Windstille",{"$nulls":6},"standard",180,10.7,17,223,111.5,128,16.5,20,263,280,0.6]
["ai","innerer Wärmeübergangskoeffizient",{"$f":"RAUFRIGO!F22","v":{"v":100,"d":"100.0"}},"[W/(m2K)]",{"$nulls":3},"wenn","d3 * d t =< 1 m3K",{"$f":"C20*J9","v":0.3912001064027481},"dann",{"$nulls":3},"standard",225,13.4,17,280,{"v":140,"d":"140.0"},140,{"v":0,"d":"0.0"},20,320,315,0.6]
["aa","äußerer Wärmeübergangskoeffizient",{"$f":"RAUFRIGO!F23","v":{"v":5,"d":"5.000"}},"[W/(m2K)]","(bei Konvektion u Strahlung)"]
["ti","Innentemperatur (Eintritt)",{"$f":"RAUFRIGO!I9","v":10},"[°C]"]
["ta","Außentemperatur (Luft)",{"$f":"RAUFRIGO!F17","v":30},"[°C]",{"$nulls":5},{"$f":"(POWER((J9/J3),(1/4)))*1.22","v":{"v":2.274172057928926,"d":"2.274"}},"[W/(m2K)]",{"$nulls":4},"Innend. PE100-Rohr","Außend. PE100-Rohr","Außend. PUR-Schaum","Außend. verz.Stahlblech","SDR","Außend. ESM","Länge ESM",null,"PE-Rohr\n","Außend. ESM"]
["l1","Wärmeleitfähigkeit PE100",{"$f":"RAUFRIGO!F24","v":0.41},"[W/(mK)]",{"$nulls":10},"140  /  63 x 5,8",0.0514,0.063,{"v":0.14,"d":"0.140"},0.14120000000000002,"SDR 11",0.082,0.118,null,20,36.001]
["l2","Wärmeleitfähigkeit PUR-Schaum",{"$f":"RAUFRIGO!F25","v":0.028},"[W/(mK)]",{"$nulls":4},"(laminare Luftströmung)",{"$nulls":5},"150  /  75 x 6,8",{"v":0.061399999999999996,"d":"0.0614"},0.075,{"v":0.15,"d":"0.150"},0.1512,"SDR 11",0.098,0.126,null,25,36.001]
["l3","Wärmeleitfähigkeit verzinktes Stahlblech",{"$f":"RAUFRIGO!F26","v":60},"[W/(mK)]","???",{"$nulls":9},"160  /  90 x 5,4",{"v":0.07919999999999999,"d":"0.0792"},{"v":0.09,"d":"0.090"},{"v":0.16,"d":"0.160"},0.1612,"SDR 17",0.117,0.148,null,32,44.001]
["d1","Innendurchmesser PE100-Rohr",{"$f":"Berechnung!Q29","v":0.0968},"[m]",{"$nulls":3},"ai","innerer Wärmeübergangskoeffizient",{"$nulls":5},"180  /  110 x 6,6",0.0968,{"v":0.11,"d":"0.110"},{"v":0.18,"d":"0.180"},0.1812,"SDR 17",{"v":0.14,"d":"0.140"},0.163,null,40,55.001]
["d2","Außendurchmesser PE100-Rohr",{"$f":"Berechnung!Q30","v":0.11},"[m]",{"$nulls":3},"Näherungsgleichung für Wasser (nach Stender und Merkel) für tf<100°C",{"$nulls":6},"200  /  125 x 7,4",{"v":0.11019999999999999,"d":"0.1102"},0.125,{"v":0.2,"d":"0.200"},0.20120000000000002,"SDR 17",0.157,0.173,null,50,68.001]
["d3","Außendurchmesser PUR-Schaum",{"$f":"Berechnung!Q31","v":0.18},"[m]",{"$nulls":3},"tein","Eintrittstemperatur",{"$f":"C31","v":10},"[°C]",{"$nulls":3},"250  /  160 x 9,5",{"v":0.14100000000000001,"d":"0.1410"},{"v":0.16,"d":"0.160"},{"v":0.25,"d":"0.250"},0.2512,"SDR 17",{"v":0.2,"d":"0.200"},0.194,null,63,82.001]
["d4","Außendurchmesser verzinktes Stahlblech",{"$f":"Berechnung!Q32","v":0.1812},"[m]",{"$nulls":3},"taus","Austrittstemperatur",{"$f":"C32","v":{"v":10.039564638148596,"d":"10.0396"}},"[°C]",{"$nulls":3},"280  /  180 x 10,7",0.1586,{"v":0.18,"d":"0.180"},{"v":0.28,"d":"0.280"},0.2812,"SDR 17",0.223,0.211,null,75,98.001]
[{"$nulls":7},"tf","(Tein+Taus)/2",{"$f":"(J20+J21)/2","v":10.019782319074299},"[°C]",{"$nulls":3},"315  /  225 x 13,4",{"v":0.19820000000000002,"d":"0.1982"},0.225,0.315,0.3162,"SDR 17",{"v":0.28,"d":"0.280"},{"v":0.24,"d":"0.240"},null,90,117.001]
[{"$nulls":7},"w","Geschwindigkeit",{"$f":"RAUFRIGO!F16","v":1},"[m/s]",{"$nulls":3},"355  /  250 x 14,8",0.2204,{"v":0.25,"d":"0.250"},0.355,0.3562,"SDR 17",{"v":0.31,"d":"0.310"},0.256,null,110,140.001]
[{"$nulls":7},"d1","Innendurchmesser PE100-Rohr",{"$f":"C18","v":0.0968},"[m]",{"$nulls":3},"400  /  280 x 16,6",0.2468,{"v":0.28,"d":"0.280"},{"v":0.4,"d":"0.400"},0.4012,"SDR 17",0.339,0.275,null,125,157.001]
[{"$nulls":8},"=> ai =",{"$f":"(POWER(J23,0.87)/POWER(J24,0.13))*2040*(1+(0.015*J22))","v":{"v":3178.8955470187134,"d":"3178.9"}},"[W/(m2K)]",{"$nulls":3},"450  /  315 x 18,7",0.2776,0.315,{"v":0.45,"d":"0.450"},0.4512,"SDR 17",0.381,0.284,null,140,176.001]
[{"$nulls":4},"w (m/h)",{"$f":"RAUFRIGO!#REF!/C18/C18/PI()/3600*4","v":{"$error":"#REF!"}},{"$nulls":8},"560  /  355 x 21,1",0.3128,0.355,{"v":0.56,"d":"0.560"},0.5612,"SDR 17",0.436,{"v":0.26,"d":"0.260"},null,160,200.001]
[{"$nulls":4},"w (l/s)",{"$f":"RAUFRIGO!#REF!/C18/C18/PI()/3600*4","v":{"$error":"#REF!"}},{"$nulls":4},"Temp","cp",null,null,{"$f":"HLOOKUP(RAUFRIGO!$AC$1,RAUFRIGO!$AB$2:$CA$999,54,0)","v":"Benutzerdefiniert"},{"$f":"(RAUFRIGO!F9-RAUFRIGO!F10-RAUFRIGO!F10)/1000","v":{"v":0,"d":"0.0000"}},{"$f":"RAUFRIGO!F9/1000","v":{"v":0,"d":"0.000"}},{"$f":"RAUFRIGO!F11/1000","v":{"v":0,"d":"0.000"}},{"$f":"R27+0.0012","v":0.0012},{"$f":"RAUFRIGO!F12","v":0},{"$f":"Y36/1000","v":{"$error":"#N/A"}},null,null,180,223.001]
["p","Dichte Medium",{"$f":"RAUFRIGO!F18","v":1000},"[kg/m3]",{"$nulls":6},-20,4.375,{"$nulls":11},200,249.001]
["cp","spezifische Wärmekapazität",{"$f":"RAUFRIGO!F27","v":4.249},"[kJ/kgK]","gemittelt",null,null,"Angaben von H Dr bei freier Konvektion:",null,null,-15,4.312,null,null,{"$f":"RAUFRIGO!D4","v":"180  /  110 x 6,6"},null,{"$f":"VLOOKUP($O$29,Berechnung!$O$15:$T$27,2)","v":0.0968},{"$f":"VLOOKUP($O$29,Berechnung!$O$15:$U$27,7)","v":{"v":0.14,"d":"0.1400"}},{"$nulls":5},225,280.001]
["V","Volumenstrom",{"$f":"((C18/2)*(C18/2)*PI())*J23","v":{"v":0.007359369286593306,"d":"0.0074"}},"[m3/s] =",{"$f":"C30*3600","v":{"v":26.4937294317359,"d":"26.5"}},"[m3/h]",null,"a(innen)= 100",null,null,-10,4.269,{"$nulls":4},{"$f":"VLOOKUP($O$29,Berechnung!$O$15:$T$27,3)","v":{"v":0.11,"d":"0.1100"}},{"$nulls":6},250,310.001]
["tein","Innentemperatur (Eintritt)",{"$f":"C13","v":10},"[°C]",{"$nulls":3},"a(außen)=5",null,null,-5,4.238,{"$nulls":4},{"$f":"VLOOKUP($O$29,Berechnung!$O$15:$T$27,4)","v":{"v":0.18,"d":"0.1800"}},{"$nulls":6},280,339.001]
["taus","Innentemperatur (Austritt)",{"$f":"C31-(C9/(C28*C29*C30)/1000)","v":{"v":10.039564638148596,"d":"10.0396"}},"[°C]","ohne T log Mittel !!!",{"$nulls":5},0,4.217,{"$nulls":4},{"$f":"VLOOKUP($O$29,Berechnung!$O$15:$T$27,5)","v":0.1812},{"$nulls":6},315,381.001]
[{"$nulls":10},5,4.202,null,null,"d1","Innendurchmesser PE100-Rohr",{"$f":"Q29*1000","v":96.8},"[mm]",{"$nulls":5},355,436.001]
[{"$nulls":10},10,4.192,null,null,"d2","Außendurchmesser PE100-Rohr",{"$f":"Q30*1000","v":{"v":110,"d":"110.0"}},"[mm]",{"$nulls":5},400,490.001]
["AR",{"$f":"1/((((1/(2*C15))*LN(C19/C18))+((1/(2*C16))*LN(C20/C19))+((1/(2*C17))*LN(C21/C20)))/PI())","v":{"v":0.35100916683012523,"d":"0.351"}},"[mK/W]","Gl(11) Wärmedurchlasskoeffizient für mehrschichtigen Hohlzylinder",{"$nulls":6},15,4.186,null,null,"d3","Außendurchmesser PUR-Schaum",{"$f":"Q31*1000","v":{"v":180,"d":"180.0"}},"[mm]"]
["kR",{"$f":"1/((1/(PI()*C18*C11))+(1/B35)+(1/(PI()*C21*C12)))","v":{"v":0.30929616405686855,"d":"0.309"}},"[mK/W]","Gl(53a) Wärmedurchgangskoeffizient",{"$nulls":6},"gemittelt",{"$f":"SUM(L28:L35)/8","v":{"v":4.248875,"d":"4.249"}},null,null,"d4","Außendurchmesser verzinktes Stahlblech",{"$f":"Q32*1000","v":181.2},"[mm]",{"$nulls":5},{"$f":"Q27*1000","v":0},{"$f":"VLOOKUP($X$36,Berechnung!$X$15:$Y$34,2)","v":{"$error":"#N/A"}}]
["tO",{"$f":"((B36*(C13-C14))/(PI()*C21*C12))+C14","v":{"v":27.826666075540288,"d":"27.83"}},"[°C]","Gl(58) Temp. an der Rohroberfläche bei Eintrittstemperatur"]
["tO",{"$f":"((B36*(C32-C14))/PI()/C21/C12)+C14","v":{"v":27.830965434055155,"d":"27.83"}},"[°C]","Gl(58) Temp. an der Rohroberfläche bei Austrittstemperatur",{"$nulls":6},"PE-Rohrwandstärken",{"$nulls":3},"X","TaupunkttiefeRohr",{"$f":"Berechnung!H49","v":{"v":13.028136979228305,"d":"13.03"}},"[mm]"]
["tTau",{"$f":"RAUFRIGO!L19","v":{"v":21.380911788383347,"d":"21.38"}},"[°C]","Taupunkttemperatur errechnet",{"$nulls":6},63,5.8,{"$f":"K39-(2*L39)","v":{"v":51.4,"d":"51.40"}},null,"Y","TaupunkttiefeESM",{"$f":"Berechnung!H61","v":{"v":6.882497187749567,"d":"6.88"}},"[mm]"]
[{"$nulls":10},75,6.8,{"v":61.4,"d":"61.40"},null,null,"Wanddicke gesamt",{"$f":"(Berechnung!H46-Berechnung!H43)/2*1000","v":42.2},"[mm]"]
[null,"Taupunkttiefe am PE-Rohr",{"$nulls":8},90,5.4,{"v":79.2,"d":"79.20"},{"$nulls":3},{"$f":"Q40-Q38","v":{"v":29.171863020771696,"d":"29.17"}}]
["ti",{"$f":"C13","v":{"v":10,"d":"10.00"}},"[°C]","Medium",null,null,"-","-",null,null,110,6.6,{"v":96.8,"d":"96.80"},{"$nulls":3},{"$f":"Q40-Q39","v":{"v":35.31750281225044,"d":"35.32"}}]
["t1",{"$f":"C13-((((1/(C11*C18)))*C9/C10)/PI())","v":{"v":10.203413278466993,"d":"10.20"}},"[°C]","PE-100 Innenrohr",null,null,"d1",{"$f":"C18","v":0.0968},"[m]",null,125,7.4,{"v":110.2,"d":"110.20"}]
["t2",{"$f":"C13-((((1/(C11*C18))+((1/(2*C15))*LN(C19/C18)))*C9/C10)/PI())","v":{"v":10.510375583711296,"d":"10.51"}},"[°C]","PE-100 Außenrohr",null,null,"d2",{"$f":"C19","v":0.11},"[m]",null,160,9.5,{"v":141,"d":"141.00"}]
["t3",{"$f":"C13-((((1/(C11*C18))+((1/(2*C15))*LN(C19/C18))+((1/(2*C16))*LN(C20/C19)))*C9/C10)/PI())","v":{"v":27.82655704742401,"d":"27.83"}},"[°C]","Außendurchmesser Isolierung",null,null,"d3",{"$f":"C20","v":0.18},"[m]",null,180,10.7,{"v":158.6,"d":"158.60"}]
["t4",{"$f":"C13-((((1/(C11*C18))+((1/(2*C15))*LN(C19/C18))+((1/(2*C16))*LN(C20/C19))+((1/(2*C17))*LN(C21/C20)))*C9/C10)/PI())","v":{"v":27.826666075540288,"d":"27.83"}},"[°C]","Außendurchmesser Wickelfalz",null,null,"d4",{"$f":"C21","v":0.1812},"[m]",null,225,13.4,{"v":198.2,"d":"198.20"}]
[null,{"$f":"(H46-H43)/2*1000","v":42.2},"[mm]","Wanddicke","gesamt"]
[{"$nulls":6},"=>",{"$f":"(((H45-H44)/(B45-B44))*(B39-B44))+H44","v":{"v":0.15394372604154338,"d":"0.15"}},"[m]"]
[{"$nulls":6},"=>",{"$f":"(H45-H48)/2*1000","v":{"v":13.028136979228305,"d":"13.03"}},"[mm] Taupunkttiefe"]
[{"$nulls":10},"Taupunkt\n","-temp\n"]
[{"$nulls":10},"Lufttemperatur",{"$f":"RAUFRIGO!F17","v":30},"°C"]
[{"$nulls":10},"rel. Luftfeutigkeit",{"$f":"RAUFRIGO!F19","v":60},"%"]
[null,"Taupunkttiefe an ESM"]
["ti",{"$f":"C13","v":{"v":10,"d":"10.00"}},"[°C]","Medium",null,null,"-","-",null,null,"a",{"$f":"IF(L51>=0,7.5,7.6)","v":7.5}]
["t1",{"$f":"C13-((((1/(C11*C18)))*C59/C60)/PI())","v":{"v":10.33623446083186,"d":"10.34"}},"[°C]","PE-100 Innenrohr",null,null,"d1",{"$f":"C18","v":0.0968},"[m]",null,"b",{"$f":"IF(L51>=0,237.3,240.7)","v":237.3}]
["t2",{"$f":"C13-((((1/(C11*C18))+((1/(2*C15))*LN(H56/C18)))*C59/C60)/PI())","v":{"v":11.800853626298958,"d":"11.80"}},"[°C]","PE-100 AußenESM",null,null,"d2",{"$f":"Berechnung!R29","v":0.14},"[m]"]
["t3",{"$f":"C13-((((1/(C11*C18))+((1/(2*C15))*LN(H56/C18))+((1/(2*C16))*LN(C20/H56)))*C59/C60)/PI())","v":{"v":26.40738094968184,"d":"26.4074"}},"[°C]","Außendurchmesser Isolierung",null,null,"d3",{"$f":"C20","v":0.18},"[m]"]
["t4",{"$f":"C13-((((1/(C11*C18))+((1/(2*C15))*LN(H56/C18))+((1/(2*C16))*LN(C20/H56))+((1/(2*C17))*LN(C21/C20)))*C59/C60)/PI())","v":{"v":26.40756116903708,"d":"26.4076"}},"[°C]","Außendurchmesser Wickelfalz",null,null,"d4",{"$f":"C21","v":0.1812},"[m]",null,"SDD",{"$f":"6.1078*(POWER(10,((L54*L51)/(L55+L51))))","v":{"v":42.42634794801739,"d":"42.43"}}]
["Q","Wärmestrom",{"$f":"((PI()*(C13-C14))/((1/(C11*C18))+((1/(2*C15))*LN(H56/C18))+((1/(2*C16))*LN(C20/H56))+((1/(2*C17))*LN(C21/C20))+(1/(C12*C21))))*C60","v":{"v":-2.045019474496077,"d":"-2.05"}},"[W]",{"$nulls":6},"DD",{"$f":"L52/100*L58","v":{"v":25.45580876881043,"d":"25.46"}}]
[null,"Länge ESM",0.2,"[m]",null,null,"=>",{"$f":"(((H57-H56)/(B57-B56))*(B39-B56))+H56","v":{"v":0.16623500562450086,"d":"0.17"}},"[m]",null,"v",{"$f":"LOG10((L59/6.1078))","v":{"v":0.6199020921344853,"d":"0.62"}}]
[{"$nulls":6},"=>",{"$f":"(H57-H60)/2*1000","v":{"v":6.882497187749567,"d":"6.88"}},"[mm] Taupunkttiefe",null,"TD",{"$f":"L55*L60/(L54-L60)","v":{"v":21.380911788383347,"d":"21.38"}}]
[]
[]
[]
["taus über gemittelte Tempdifferenz (ti zu ta)",{"$nulls":3},"ti log Mittel",null,null,"Sicherheit Taupunkttiefe wegen Toleranzen"]
["k",{"$f":"((PI()*(1))/((1/(C11*C18))+((1/(2*C15))*LN(C19/C18))+((1/(2*C16))*LN(C20/C19))+((1/(2*C17))*LN(C21/C20))+(1/(C12*C21))))","v":0.3092961640568686},"[W/mK]",null,"log. Ti °C","Q",{"$nulls":3},"Tmax","Iso.dicke"]
["m",{"$f":"RAUFRIGO!L17*RAUFRIGO!F18/3600","v":7.359369286593306},"[kg/s]",null,{"$f":"(F67/Berechnung!B66/RAUFRIGO!F15)+RAUFRIGO!F17","v":{"v":10.019769489826874,"d":"10.0198"}},{"$f":"RAUFRIGO!L16","v":{"v":-1235.9617307537117,"d":"-1235.96"}},null,140,63,{"v":3.1,"d":"3.10"},{"$f":"(H67-I67)/2","v":38.5},{"$f":"J67/K67","v":{"v":0.08051948051948052,"d":"0.081"}},{"$f":"L67*100","v":{"v":8.051948051948052,"d":"8.1"}},null,{"$f":"J67/I67*100","v":{"v":4.920634920634921,"d":"4.9"}},{"$f":"J67/H67*100","v":{"v":2.2142857142857144,"d":"2.2143"}}]
["c",{"$f":"RAUFRIGO!F27","v":4.249},"[kJ/kgK]",{"$nulls":4},150,75,{"v":3.1,"d":"3.10"},{"$f":"(H68-I68)/2","v":37.5},{"$f":"J68/K68","v":{"v":0.08266666666666667,"d":"0.083"}},{"$f":"L68*100","v":{"v":8.266666666666666,"d":"8.3"}},null,{"$f":"J68/I68*100","v":{"v":4.133333333333333,"d":"4.1"}},{"$f":"J68/H68*100","v":{"v":2.0666666666666664,"d":"2.0667"}}]
[{"$nulls":7},160,90,{"v":3.2,"d":"3.20"},{"v":35,"d":"35.0"},{"v":0.09142857142857143,"d":"0.091"},{"v":9.142857142857142,"d":"9.1"},null,{"v":3.5555555555555554,"d":"3.6"},{"v":2,"d":"2.0000"}]
["1-e",{"$f":"1-POWER(2.7182818,B66*C10/B67/B68/1000)","v":-0.001980189878325156},{"$nulls":5},180,110,{"v":3.4,"d":"3.40"},{"v":35,"d":"35.0"},{"v":0.09714285714285714,"d":"0.097"},{"v":9.714285714285714,"d":"9.7"},null,{"v":3.090909090909091,"d":"3.1"},{"v":1.8888888888888888,"d":"1.8889"}]
["e",{"$f":"POWER(2.7182818,B66*C10/B67/B68/1000)","v":1.0019801898783252},{"$nulls":5},200,125,{"v":3.6,"d":"3.60"},37.5,0.096,9.6,null,{"v":2.88,"d":"2.9"},{"v":1.8000000000000003,"d":"1.8000"}]
[{"$nulls":7},250,160,{"v":4,"d":"4.00"},{"v":45,"d":"45.0"},{"v":0.08888888888888889,"d":"0.089"},{"v":8.88888888888889,"d":"8.9"},null,2.5,{"v":1.6,"d":"1.6000"}]
["taus",{"$f":"(C13-(C14*B70))/B71","v":10.039525529513027},{"$nulls":5},280,180,{"v":4.2,"d":"4.20"},{"v":50,"d":"50.0"},0.084,8.4,null,{"v":2.3333333333333335,"d":"2.3"},{"v":1.5000000000000002,"d":"1.5000"}]
[{"$nulls":7},315,225,{"v":4.7,"d":"4.70"},{"v":45,"d":"45.0"},{"v":0.10444444444444445,"d":"0.104"},{"v":10.444444444444445,"d":"10.4"},null,{"v":2.088888888888889,"d":"2.1"},{"v":1.492063492063492,"d":"1.4921"}]
[{"$nulls":7},355,250,{"v":5,"d":"5.00"},52.5,{"v":0.09523809523809523,"d":"0.095"},{"v":9.523809523809524,"d":"9.5"},null,{"v":2,"d":"2.0"},{"v":1.4084507042253522,"d":"1.4085"}]
[{"$nulls":7},400,280,{"v":7.4,"d":"7.40"},{"v":60,"d":"60.0"},{"v":0.12333333333333334,"d":"0.123"},{"v":12.333333333333334,"d":"12.3"},null,{"v":2.642857142857143,"d":"2.6"},{"v":1.8500000000000003,"d":"1.8500"}]
[{"$nulls":7},450,315,{"v":8.1,"d":"8.10"},67.5,{"v":0.12,"d":"0.120"},{"v":12,"d":"12.0"},null,{"v":2.571428571428571,"d":"2.6"},{"v":1.7999999999999998,"d":"1.8000"}]
[{"$nulls":7},560,355,{"v":8.8,"d":"8.80"},102.5,{"v":0.08585365853658537,"d":"0.086"},{"v":8.585365853658537,"d":"8.6"},null,{"v":2.47887323943662,"d":"2.5"},{"v":1.5714285714285716,"d":"1.5714"}]
[]
[{"$nulls":12},{"$f":"SUM(M67:M79)/12","v":{"v":9.579299968324358,"d":"9.6"}},null,{"$f":"SUM(O67:O79)/12","v":{"v":2.932984506364788,"d":"2.9"}}]
[{"$nulls":11},"gewählt",0.1]
[{"$nulls":12},{"$f":"1-M81","v":0.9}]